[Event "FIDE WCCC Open-10 2024"]
[Site "Montesilvano"]
[Date "2024.11.18"]
[Round "2.41"]
[White "Wu, Chenyu"]
[Black "Zhou, Martin"]
[Result "0-1"]
[ECO "E98"]
[WhiteElo "1503"]
[BlackElo "1776"]
[PlyCount "114"]
[EventDate "2024.11.18"]
[EventType "swiss"]
[EventCountry "ITA"]
[TimeControl "5400+30"]

1. d4 {[%emt 0:00:08]} Nf6 {[%emt 0:00:05]} 2. c4 {[%emt 0:00:05]} g6 {[%emt 0:00:04]} 3. Nc3 {[%emt 0:00:04]} Bg7 {[%emt 0:00:03]} 4. e4 {[%emt 0:00:18]} d6 {[%emt 0:00:03]} 5. Nf3 {[%emt 0:00:15]} O-O {[%emt 0:00:06]} 6. Be2 {[%emt 0:00:07]} e5 {[%emt 0:00:12]} 7. O-O {[%emt 0:00:33]} Nc6 {[%emt 0:00:04]} 8. d5 {[%emt 0:00:03]} Ne7 {[%emt 0:00:05]} 9. Ne1 {[%emt 0:00:08]} Ne8 {[%emt 0:00:14]} 10. f3 {[%emt 0:00:07]} f5 {[%emt 0:00:11]} 11. Be3 {[%emt 0:00:06]} f4 {[%emt 0:00:06]} 12. Bf2 {[%emt 0:00:04]} g5 {[%emt 0:00:06]} 13. c5 {[%emt 0:00:16]} Ng6 {[%emt 0:05:26]} 14. Rc1 {[%emt 0:03:21]} Rf7 {[%emt 0:00:18]} 15. a4 {[%emt 0:00:36]} h5 {[%emt 0:02:30]} 16. b4 {[%emt 0:02:33]} Bf8 {[%emt 0:02:20]} 17. c6 {[%emt 0:11:45]} b6 {[%emt 0:00:08]} 18. a5 {[%emt 0:00:54]} Rg7 {[%emt 0:00:32]} 19. Qa4 {[%emt 0:03:03]} a6 {[%emt 0:20:49]} 20. axb6 {[%emt 0:00:44]} cxb6 {[%emt 0:00:08]} 21. Na2 {[%emt 0:02:35]} Qc7 {[%emt 0:00:17]} 22. Nc3 {[%emt 0:04:06]} Nh4 {[%emt 0:17:11]} 23. Nb5 {[%emt 0:01:13]} Qb8 {[%emt 0:00:20]} 24. Na3 {[%emt 0:02:08]} Be7 {[%emt 0:02:35]} 25. c7 {[%emt 0:05:18]} Nxc7 {[%emt 0:00:34]} 26. Qc6 {[%emt 0:00:05]} Nb5 {[%emt 0:49:03]} 27. Nxb5 {[%emt 0:01:30]} axb5 {[%emt 0:00:00]} 28. Bxb5 {[%emt 0:00:16]} g4 {[%emt 0:00:00]} 29. Qe8+ {[%emt 0:00:56]} Bf8 {[%emt 0:00:00]} 30. Bxh4 {[%emt 0:00:07]} Bd7 {[%emt 0:00:00]} 31. Qxb8 {[%emt 0:00:32]} Rxb8 {[%emt 0:00:00]} 32. Bxd7 {[%emt 0:00:33]} Rxd7 {[%emt 0:00:00]} 33. Nd3 {[%emt 0:00:38]} Ra8 {[%emt 0:00:00]} 34. Ra1 {[%emt 0:01:09]} Rda7 {[%emt 0:00:00]} 35. Rxa7 {[%emt 0:00:17]} Rxa7 {[%emt 0:00:00]} 36. b5 {[%emt 0:00:20]} Ra3 {[%emt 0:00:00]} 37. Nc1 {[%emt 0:01:44]} Ra5 {[%emt 0:00:00]} 38. Ne2 {[%emt 0:00:57]} Rxb5 {[%emt 0:00:00]} 39. Rc1 {[%emt 0:00:13]} Rb2 {[%emt 0:00:00]} 40. Kf2 {[%emt 0:00:20]} b5 {[%emt 0:00:00]} 41. Rc8 {[%emt 0:00:09]} Kf7 {[%emt 0:00:00]} 42. Rb8 {[%emt 0:00:36]} b4 {[%emt 0:00:00]} 43. Ke1 {[%emt 0:01:26]} Rb1+ {[%emt 0:00:00]} 44. Kf2 {[%emt 0:02:32]} Rb2 {[%emt 0:00:00]} 45. Kf1 {[%emt 0:06:02]} Rb1+ {[%emt 0:00:00]} 46. Be1 {[%emt 0:00:12]} b3 {[%emt 0:00:00]} 47. Kf2 {[%emt 0:00:53]} Be7 {[%emt 0:00:00]} 48. Rb7 {[%emt 0:04:09]} Ke8 {[%emt 0:00:00]} 49. Rc7 {[%emt 0:03:15]} Bh4+ {[%emt 0:00:00]} 50. g3 {[%emt 0:00:08]} gxf3 {[%emt 0:00:00]} 51. Kxf3 {[%emt 0:00:58]} Rxe1 {[%emt 0:00:00]} 52. gxh4 {[%emt 0:02:16]} b2 {[%emt 0:00:00]} 53. Nc3 {[%emt 0:00:52]} Re3+ {[%emt 0:00:00]} 54. Kf2 {[%emt 0:00:18]} Rxc3 {[%emt 0:00:00]} 55. Rb7 {[%emt 0:00:23]} Rc2+ {[%emt 0:00:00]} 56. Kg1 {[%emt 0:00:14]} Rc1+ {[%emt 0:00:00]} 57. Kg2 {[%emt 0:00:19]} b1=Q {[%emt 0:00:05]} 0-1

[Event "FIDE WCCC Open-10 2024"]
[Site "Montesilvano"]
[Date "2024.11.18"]
[Round "2.43"]
[White "Orsi, Andrea"]
[Black "Schettini Acuna, Massimo Matteo"]
[Result "1/2-1/2"]
[ECO "C90"]
[WhiteElo "1728"]
[BlackElo "1703"]
[PlyCount "90"]
[EventDate "2024.11.18"]
[EventType "swiss"]
[EventCountry "ITA"]
[TimeControl "5400+30"]

1. e4 {[%emt 0:00:04]} e5 {[%emt 0:00:15]} 2. Nf3 {[%emt 0:00:07]} Nc6 {[%emt 0:00:10]} 3. Bb5 {[%emt 0:00:08]} a6 {[%emt 0:00:26]} 4. Ba4 {[%emt 0:00:06]} Nf6 {[%emt 0:00:23]} 5. O-O {[%emt 0:00:41]} Be7 {[%emt 0:00:24]} 6. Re1 {[%emt 0:00:18]} b5 {[%emt 0:00:07]} 7. Bb3 {[%emt 0:00:17]} d6 {[%emt 0:00:13]} 8. h3 {[%emt 0:02:25]} Na5 {[%emt 0:00:46]} 9. d4 {[%emt 0:05:10]} Nxb3 {[%emt 0:03:36]} 10. axb3 {[%emt 0:02:01]} exd4 {[%emt 0:04:31]} 11. Nxd4 {[%emt 0:30:46]} Bb7 {[%emt 0:12:34]} 12. Nf5 {[%emt 0:10:03]} O-O {[%emt 0:05:14]} 13. Qd3 {[%emt 0:10:08]} Re8 {[%emt 0:04:12]} 14. Bh6 {[%emt 0:20:05]} Bf8 {[%emt 0:02:55]} 15. Bg5 {[%emt 0:10:29]} Bxe4 {[%emt 0:00:58]} 16. Rxe4 {[%emt 0:02:45]} Rxe4 {[%emt 0:00:13]} 17. Qxe4 {[%emt 0:00:14]} Nxe4 {[%emt 0:00:11]} 18. Bxd8 {[%emt 0:00:05]} Rxd8 {[%emt 0:00:17]} 19. Rxa6 {[%emt 0:00:30]} g6 {[%emt 0:00:49]} 20. Nd4 {[%emt 0:00:50]} Re8 {[%emt 0:09:15]} 21. Nxb5 {[%emt 0:01:25]} Nc5 {[%emt 0:00:26]} 22. Ra1 {[%emt 0:00:45]} Re1+ {[%emt 0:00:16]} 23. Kh2 {[%emt 0:00:06]} Ne4 {[%emt 0:01:03]} 24. N5c3 {[%emt 0:01:02]} Nxc3 {[%emt 0:00:25]} 25. bxc3 {[%emt 0:00:06]} f5 {[%emt 0:00:35]} 26. Kg3 {[%emt 0:00:39]} Kf7 {[%emt 0:00:42]} 27. Kf3 {[%emt 0:01:18]} Bg7 {[%emt 0:00:21]} 28. h4 {[%emt 0:00:46]} Bxc3 {[%emt 0:00:24]} 29. Ra7 {[%emt 0:00:07]} Bd4 {[%emt 0:11:00]} 30. Rxc7+ {[%emt 0:00:53]} Ke6 {[%emt 0:00:22]} 31. Nd2 {[%emt 0:00:45]} Rd1 {[%emt 0:02:23]} 32. Ke2 {[%emt 0:00:15]} Rc1 {[%emt 0:00:40]} 33. b4 {[%emt 0:00:47]} d5 {[%emt 0:06:02]} 34. Nb3 {[%emt 0:00:40]} Kd6 {[%emt 0:01:55]} 35. Rxh7 {[%emt 0:00:40]} Rxc2+ {[%emt 0:00:44]} 36. Kd3 {[%emt 0:00:10]} Rc3+ {[%emt 0:00:45]} 37. Kxd4 {[%emt 0:00:11]} Rxb3 {[%emt 0:00:19]} 38. Rh6 {[%emt 0:00:23]} Rxb4+ {[%emt 0:00:18]} 39. Kc3 {[%emt 0:00:15]} Rg4 {[%emt 0:00:59]} 40. g3 {[%emt 0:01:02]} Ke6 {[%emt 0:02:36]} 41. h5 {[%emt 0:00:18]} Kf6 {[%emt 0:01:17]} 42. Rxg6+ {[%emt 0:00:24]} Rxg6 {[%emt 0:00:21]} 43. hxg6 {[%emt 0:00:05]} Kxg6 {[%emt 0:00:05]} 44. Kd4 {[%emt 0:00:05]} Kg5 {[%emt 0:00:39]} 45. Kxd5 {[%emt 0:00:09]} f4 {[%emt 0:00:24]} 1/2-1/2

[Event "FIDE WCCC Open-10 2024"]
[Site "Montesilvano"]
[Date "2024.11.18"]
[Round "2.44"]
[White "Radiukevich, Viacheslau"]
[Black "Guirado Lara, Pablo"]
[Result "0-1"]
[ECO "B45"]
[WhiteElo "1484"]
[BlackElo "1832"]
[PlyCount "108"]
[EventDate "2024.11.18"]
[EventType "swiss"]
[EventCountry "ITA"]
[TimeControl "5400+30"]

1. e4 {[%emt 0:00:03]} c5 {[%emt 0:00:03]} 2. Nf3 {[%emt 0:00:11]} e6 {[%emt 0:00:03]} 3. d4 {[%emt 0:00:10]} cxd4 {[%emt 0:00:06]} 4. Nxd4 {[%emt 0:00:07]} Nf6 {[%emt 0:00:05]} 5. Nc3 {[%emt 0:00:26]} Nc6 {[%emt 0:00:05]} 6. Nxc6 {[%emt 0:00:07]} bxc6 {[%emt 0:00:04]} 7. e5 {[%emt 0:00:14]} Nd5 {[%emt 0:00:05]} 8. Nxd5 {[%emt 0:00:10]} cxd5 {[%emt 0:01:43]} 9. Bd3 {[%emt 0:00:06]} d6 {[%emt 0:04:05]} 10. exd6 {[%emt 0:04:10]} Bxd6 {[%emt 0:00:10]} 11. c3 {[%emt 0:07:10]} Qc7 12. Bb5+ {[%emt 1:23:36]} Bd7 {[%emt 1:30:01]} 13. Bxd7+ {[%emt 0:00:30]} Qxd7 {[%emt 0:00:30]} 14. O-O {[%emt 0:00:30]} O-O {[%emt 0:00:30]} 15. Re1 {[%emt 0:00:30]} Rab8 {[%emt 0:00:30]} 16. Re3 {[%emt 0:00:30]} Bf4 {[%emt 0:00:30]} 17. Rh3 {[%emt 0:00:30]} Bxc1 {[%emt 0:00:30]} 18. Qxc1 {[%emt 0:00:30]} Rfc8 {[%emt 0:00:30]} 19. Qc2 {[%emt 0:00:30]} f5 {[%emt 0:00:30]} 20. Qe2 {[%emt 0:00:30]} Rc6 {[%emt 0:00:30]} 21. Rd3 {[%emt 0:00:30]} Qb7 {[%emt 0:00:30]} 22. Rb1 {[%emt 0:00:30]} Qa6 {[%emt 0:00:30]} 23. Qe5 {[%emt 0:00:30]} Rcb6 {[%emt 0:00:30]} 24. Rg3 {[%emt 0:00:30]} R8b7 {[%emt 0:00:30]} 25. Rg5 {[%emt 0:00:30]} h6 {[%emt 0:00:30]} 26. Rg6 {[%emt 0:00:30]} Kh7 {[%emt 0:00:30]} 27. Rg3 {[%emt 0:00:30]} Qxa2 {[%emt 0:00:30]} 28. Rf1 {[%emt 0:00:30]} Qxb2 {[%emt 0:00:30]} 29. h4 {[%emt 0:00:30]} Qc2 {[%emt 0:00:30]} 30. h5 {[%emt 0:00:30]} Qe4 {[%emt 0:00:30]} 31. Re3 {[%emt 0:00:30]} Qxe5 {[%emt 0:00:30]} 32. Rxe5 {[%emt 0:00:30]} Kg8 {[%emt 0:00:30]} 33. Rfe1 {[%emt 0:00:30]} Kf7 {[%emt 0:00:30]} 34. Kh2 {[%emt 0:00:30]} a5 {[%emt 0:00:30]} 35. c4 {[%emt 0:00:30]} dxc4 {[%emt 0:00:30]} 36. Rxa5 {[%emt 0:00:30]} Rc7 {[%emt 0:00:30]} 37. Rc1 {[%emt 0:00:30]} Kf6 {[%emt 0:00:30]} 38. Ra3 {[%emt 0:00:30]} Ke5 {[%emt 0:00:30]} 39. Kg3 {[%emt 0:00:30]} Kd4 {[%emt 0:00:30]} 40. Rac3 {[%emt 0:00:30]} Rc5 {[%emt 0:00:30]} 41. R3c2 {[%emt 0:00:30]} c3 {[%emt 0:00:30]} 42. Rd1+ {[%emt 0:00:30]} Kc4 {[%emt 0:00:30]} 43. Rdc1 {[%emt 0:00:30]} Kd3 {[%emt 0:00:30]} 44. Kf4 {[%emt 0:00:30]} Rb2 {[%emt 0:00:30]} 45. Rxb2 {[%emt 0:00:30]} cxb2 46. Rxc5 {[%emt 0:00:30]} b1=Q {[%emt 0:01:00]} 47. Ke5 {[%emt 0:00:30]} Qe1+ {[%emt 0:00:30]} 48. Kd6 {[%emt 0:00:30]} Qxf2 {[%emt 0:00:30]} 49. Re5 {[%emt 0:00:30]} Qb6+ {[%emt 0:00:30]} 50. Ke7 {[%emt 0:00:30]} Qb7+ {[%emt 0:00:30]} 51. Kxe6 {[%emt 0:00:30]} Qxg2 {[%emt 0:00:30]} 52. Rxf5 {[%emt 0:00:30]} Qg4 {[%emt 0:00:30]} 53. Ke5 {[%emt 0:00:30]} Qe4+ {[%emt 0:00:30]} 54. Kd6 {[%emt 0:00:30]} Qxf5 {[%emt 0:00:30]} 0-1

[Event "FIDE WCCC Open-10 2024"]
[Site "Montesilvano"]
[Date "2024.11.18"]
[Round "2.45"]
[White "Gusev, Daniil Den"]
[Black "Vydra, David"]
[Result "1-0"]
[ECO "B81"]
[WhiteElo "1863"]
[BlackElo "1615"]
[PlyCount "113"]
[EventDate "2024.11.18"]
[EventType "swiss"]
[EventCountry "ITA"]
[TimeControl "5400+30"]

1. e4 {[%emt 0:00:02]} c5 {[%emt 0:00:30]} 2. Nf3 {[%emt 0:00:09]} d6 {[%emt 0:00:15]} 3. d4 {[%emt 0:00:26]} cxd4 {[%emt 0:00:21]} 4. Nxd4 {[%emt 0:00:18]} Nf6 {[%emt 0:00:31]} 5. Nc3 {[%emt 0:00:27]} a6 {[%emt 0:00:31]} 6. h3 {[%emt 0:00:30]} e6 {[%emt 0:02:56]} 7. g4 {[%emt 0:01:13]} Be7 {[%emt 0:04:48]} 8. Be3 {[%emt 0:04:21]} b5 {[%emt 0:02:41]} 9. g5 {[%emt 0:05:36]} Nfd7 {[%emt 0:03:45]} 10. h4 {[%emt 0:01:28]} Bb7 {[%emt 0:02:37]} 11. f3 {[%emt 0:04:34]} Nc6 {[%emt 0:05:21]} 12. Qd2 {[%emt 0:05:33]} Qc7 {[%emt 0:04:16]} 13. O-O-O {[%emt 0:06:45]} Rc8 {[%emt 0:14:40]} 14. Kb1 {[%emt 0:12:20]} b4 {[%emt 0:11:33]} 15. Nce2 {[%emt 0:06:59]} Nde5 {[%emt 0:08:59]} 16. b3 {[%emt 0:06:09]} Qa5 {[%emt 0:10:03]} 17. Rg1 {[%emt 0:04:30]} Na7 {[%emt 0:03:04]} 18. Nc1 {[%emt 0:14:13]} Nb5 {[%emt 0:02:27]} 19. Bxb5+ {[%emt 0:01:43]} axb5 {[%emt 0:00:07]} 20. Qe2 {[%emt 0:06:42]} O-O {[%emt 0:07:40]} 21. h5 {[%emt 0:04:02]} d5 {[%emt 0:05:53]} 22. f4 {[%emt 0:01:17]} Nc6 {[%emt 0:00:39]} 23. e5 {[%emt 0:01:29]} Nxd4 {[%emt 0:01:03]} 24. Bxd4 {[%emt 0:00:09]} Bc5 {[%emt 0:00:46]} 25. Qg4 {[%emt 0:02:54]} Qb6 {[%emt 0:01:33]} 26. Bxc5 {[%emt 0:01:33]} Qxc5 {[%emt 0:00:09]} 27. Rd2 {[%emt 0:00:26]} Qe7 {[%emt 0:01:21]} 28. Ne2 {[%emt 0:04:03]} Rc6 {[%emt 0:02:03]} 29. Nd4 {[%emt 0:02:11]} Ra6 {[%emt 0:00:05]} 30. Nxb5 {[%emt 0:00:14]} Rfa8 {[%emt 0:00:59]} 31. a4 {[%emt 0:00:07]} bxa3 {[%emt 0:01:04]} 32. Ka2 {[%emt 0:00:22]} Qb4 {[%emt 0:00:42]} 33. Qe2 {[%emt 0:00:23]} Rc6 {[%emt 0:00:44]} 34. Nd4 {[%emt 0:01:17]} Rc3 {[%emt 0:01:17]} 35. Qb5 {[%emt 0:00:50]} Qxb5 {[%emt 0:02:37]} 36. Nxb5 {[%emt 0:00:06]} Rf3 {[%emt 0:00:00]} 37. Nd6 {[%emt 0:00:43]} Ba6 {[%emt 0:00:00]} 38. Rd4 {[%emt 0:00:06]} Rf2 {[%emt 0:00:00]} 39. Kxa3 {[%emt 0:00:27]} Bd3+ {[%emt 0:02:00]} 40. Ra4 {[%emt 0:00:18]} Rxa4+ {[%emt 0:00:00]} 41. bxa4 {[%emt 0:00:09]} Rxc2 {[%emt 0:00:00]} 42. Rb1 {[%emt 0:00:56]} Rc3+ {[%emt 0:00:17]} 43. Kb4 {[%emt 0:00:21]} Rc6 {[%emt 0:00:44]} 44. Rb3 {[%emt 0:00:32]} Bc4 {[%emt 0:00:38]} 45. Rc3 {[%emt 0:00:58]} Rb6+ {[%emt 0:00:03]} 46. Kc5 {[%emt 0:00:12]} Ra6 {[%emt 0:00:23]} 47. Nxc4 {[%emt 0:01:16]} dxc4 {[%emt 0:00:05]} 48. Kb5 {[%emt 0:00:13]} Ra8 {[%emt 0:00:06]} 49. Rxc4 {[%emt 0:00:04]} Kf8 {[%emt 0:00:04]} 50. a5 {[%emt 0:00:03]} Ke7 {[%emt 0:00:03]} 51. Rc7+ {[%emt 0:00:04]} Ke8 {[%emt 0:00:25]} 52. Kb6 {[%emt 0:00:56]} Rb8+ {[%emt 0:00:11]} 53. Rb7 {[%emt 0:00:04]} Rd8 {[%emt 0:00:19]} 54. a6 {[%emt 0:00:05]} Rd1 {[%emt 0:00:04]} 55. a7 {[%emt 0:00:04]} Rb1+ {[%emt 0:00:04]} 56. Kc7 {[%emt 0:00:05]} Rc1+ {[%emt 0:00:09]} 57. Kb8 {[%emt 0:00:09]} 1-0

[Event "FIDE WCCC Open-10 2024"]
[Site "Montesilvano"]
[Date "2024.11.18"]
[Round "2.46"]
[White "Nikitakis, Michail"]
[Black "Czech, Emil"]
[Result "1/2-1/2"]
[ECO "B45"]
[WhiteElo "1818"]
[BlackElo "1608"]
[PlyCount "58"]
[EventDate "2024.11.18"]
[EventType "swiss"]
[EventCountry "ITA"]
[TimeControl "5400+30"]

1. e4 {[%emt 0:00:02]} c5 {[%emt 0:00:06]} 2. Nf3 {[%emt 0:00:05]} e6 {[%emt 0:00:06]} 3. d4 {[%emt 0:00:02]} cxd4 {[%emt 0:00:06]} 4. Nxd4 {[%emt 0:00:07]} Nf6 {[%emt 0:00:08]} 5. Nc3 {[%emt 0:00:08]} Nc6 {[%emt 0:00:08]} 6. f4 {[%emt 0:00:44]} Bb4 {[%emt 0:01:34]} 7. Nxc6 {[%emt 0:22:12]} bxc6 {[%emt 0:01:48]} 8. e5 {[%emt 0:04:02]} Nd5 {[%emt 0:10:42]} 9. Qd3 {[%emt 0:11:38]} Nxc3 {[%emt 0:18:04]} 10. bxc3 {[%emt 0:56:30]} Bc5 {[%emt 1:02:48]} 11. Qg3 {[%emt 0:00:00]} g6 {[%emt 0:00:00]} 12. h4 {[%emt 0:00:00]} h5 {[%emt 0:00:00]} 13. Rb1 {[%emt 0:00:00]} Qa5 {[%emt 0:00:00]} 14. a3 {[%emt 0:00:00]} Ba6 {[%emt 0:00:00]} 15. Bxa6 {[%emt 0:02:30]} Qxa6 {[%emt 0:00:00]} 16. Qd3 {[%emt 0:00:00]} Qc8 {[%emt 0:00:00]} 17. Qc4 {[%emt 0:00:00]} Be7 {[%emt 0:00:00]} 18. O-O {[%emt 0:00:00]} Rb8 {[%emt 0:00:00]} 19. Be3 {[%emt 0:00:00]} Bxa3 {[%emt 0:00:00]} 20. Bc5 {[%emt 0:01:59]} Bxc5+ {[%emt 0:00:00]} 21. Qxc5 {[%emt 0:00:05]} Rb6 {[%emt 0:00:00]} 22. Rxb6 {[%emt 0:00:46]} axb6 {[%emt 0:00:00]} 23. Qxb6 {[%emt 0:00:05]} Qd8 {[%emt 0:00:00]} 24. Qc5 {[%emt 0:01:03]} Qe7 {[%emt 0:00:00]} 25. Qb6 {[%emt 0:00:31]} O-O {[%emt 0:00:11]} 26. g3 {[%emt 0:00:25]} Qa3 {[%emt 0:00:54]} 27. Qd4 {[%emt 0:00:35]} Rd8 {[%emt 0:07:25]} 28. Qb6 {[%emt 0:01:01]} Rf8 {[%emt 0:00:30]} 29. Qd4 {[%emt 0:00:30]} Rd8 1/2-1/2

[Event "FIDE WCCC Open-10 2024"]
[Site "Montesilvano"]
[Date "2024.11.18"]
[Round "2.47"]
[White "Hung, I-Hsuan"]
[Black "Kovacs, Balazs"]
[Result "0-1"]
[ECO "B30"]
[WhiteElo "1608"]
[BlackElo "1871"]
[PlyCount "60"]
[EventDate "2024.11.18"]
[EventType "swiss"]
[EventCountry "ITA"]
[TimeControl "5400+30"]

1. e4 {[%emt 0:00:02]} c5 {[%emt 0:00:05]} 2. Nf3 {[%emt 0:00:06]} Nc6 {[%emt 0:00:04]} 3. Bb5 {[%emt 0:00:08]} e6 {[%emt 0:00:08]} 4. O-O {[%emt 0:00:40]} Nge7 {[%emt 0:00:07]} 5. c3 {[%emt 0:00:34]} a6 {[%emt 0:00:15]} 6. Bxc6 {[%emt 0:00:17]} Nxc6 {[%emt 0:00:53]} 7. d4 {[%emt 0:01:21]} cxd4 {[%emt 0:02:51]} 8. cxd4 {[%emt 0:00:18]} d5 {[%emt 0:01:56]} 9. exd5 {[%emt 0:01:24]} exd5 {[%emt 0:00:24]} 10. Bf4 {[%emt 0:01:27]} Be7 {[%emt 0:03:29]} 11. Nc3 {[%emt 0:02:14]} O-O {[%emt 0:05:24]} 12. Qb3 {[%emt 0:01:10]} Be6 {[%emt 0:18:00]} 13. Qxb7 {[%emt 0:01:44]} Nb4 {[%emt 0:03:27]} 14. Ne5 {[%emt 0:03:15]} Bd6 {[%emt 0:08:32]} 15. a3 {[%emt 0:01:22]} Rb8 {[%emt 0:03:41]} 16. Qa7 {[%emt 0:00:24]} f6 {[%emt 0:08:47]} 17. axb4 {[%emt 0:00:13]} fxe5 {[%emt 0:00:09]} 18. Bxe5 {[%emt 0:00:07]} Bxe5 {[%emt 0:00:14]} 19. dxe5 {[%emt 0:00:08]} d4 {[%emt 0:06:34]} 20. Rfd1 {[%emt 0:02:54]} Rb6 {[%emt 0:13:30]} 21. Rxa6 {[%emt 0:01:41]} dxc3 {[%emt 0:04:31]} 22. Raa1 {[%emt 0:04:29]} Qxd1+ {[%emt 0:02:59]} 23. Rxd1 {[%emt 0:01:21]} c2 {[%emt 0:00:05]} 24. Re1 {[%emt 0:03:41]} Rc6 {[%emt 0:01:38]} 25. Qa1 {[%emt 0:00:49]} Rfc8 {[%emt 0:01:09]} 26. Qc1 {[%emt 0:00:50]} Bb3 {[%emt 0:03:37]} 27. Re3 {[%emt 0:01:39]} Rd8 {[%emt 0:00:30]} 28. Re1 {[%emt 0:00:24]} Rd1 {[%emt 0:00:14]} 29. Rxd1 {[%emt 0:01:12]} cxd1=Q+ {[%emt 0:00:09]} 30. Qxd1 {[%emt 0:00:10]} Bxd1 {[%emt 0:12:08]} 0-1

[Event "FIDE WCCC Open-10 2024"]
[Site "Montesilvano"]
[Date "2024.11.18"]
[Round "2.48"]
[White "Zilincan, Tomas"]
[Black "Munoz Padilla, Andres"]
[Result "1-0"]
[ECO "E65"]
[WhiteElo "1778"]
[BlackElo "1604"]
[PlyCount "101"]
[EventDate "2024.11.18"]
[EventType "swiss"]
[EventCountry "ITA"]
[TimeControl "5400+30"]

1. Nf3 {[%emt 0:00:02]} Nf6 {[%emt 0:00:07]} 2. d4 {[%emt 0:00:07]} g6 {[%emt 0:00:07]} 3. c4 {[%emt 0:00:16]} Bg7 {[%emt 0:00:09]} 4. Nc3 {[%emt 0:00:27]} O-O {[%emt 0:00:11]} 5. g3 {[%emt 0:00:07]} d6 {[%emt 0:00:09]} 6. Bg2 {[%emt 0:00:04]} Nbd7 {[%emt 0:03:14]} 7. O-O {[%emt 0:00:15]} c5 {[%emt 0:02:05]} 8. e3 {[%emt 1:33:12]} Qc7 {[%emt 0:05:03]} 9. b3 {[%emt 0:00:00]} cxd4 {[%emt 0:05:51]} 10. exd4 {[%emt 0:00:00]} e5 {[%emt 0:03:53]} 11. Ba3 {[%emt 0:00:00]} Re8 {[%emt 0:01:20]} 12. Nb5 {[%emt 0:00:00]} Qa5 {[%emt 0:00:50]} 13. Bxd6 {[%emt 0:00:00]} Ne4 {[%emt 0:01:15]} 14. Nxe5 {[%emt 0:00:00]} Nxd6 {[%emt 0:00:32]} 15. Nxd6 {[%emt 0:00:00]} Re6 {[%emt 0:06:08]} 16. Nxc8 {[%emt 0:00:00]} Rxc8 {[%emt 0:00:18]} 17. Nxd7 {[%emt 0:00:00]} Rd6 {[%emt 0:00:53]} 18. Bh3 {[%emt 0:00:00]} f5 {[%emt 0:00:12]} 19. Bg2 {[%emt 0:00:00]} Rxd7 {[%emt 0:00:08]} 20. Bd5+ {[%emt 0:00:00]} Kh8 {[%emt 0:00:47]} 21. Qe2 {[%emt 0:00:00]} Rdd8 {[%emt 0:00:22]} 22. Rad1 {[%emt 0:00:00]} Re8 {[%emt 0:04:23]} 23. Qb2 {[%emt 0:00:00]} Qb6 {[%emt 0:01:57]} 24. Qd2 {[%emt 0:00:00]} Rcd8 {[%emt 0:01:33]} 25. Rfe1 {[%emt 0:00:00]} Rxe1+ {[%emt 0:00:58]} 26. Rxe1 {[%emt 0:00:00]} Bxd4 {[%emt 0:00:26]} 27. Re7 {[%emt 0:00:00]} Bc5 {[%emt 0:00:53]} 28. Rf7 {[%emt 0:00:00]} g5 {[%emt 0:09:57]} 29. Qxg5 {[%emt 0:00:00]} Bxf2+ {[%emt 0:00:39]} 30. Kg2 {[%emt 0:00:00]} Bd4 {[%emt 0:00:24]} 31. Qe7 {[%emt 0:00:00]} Bg7 {[%emt 0:06:05]} 32. Rxg7 {[%emt 0:00:00]} Qh6 {[%emt 0:00:31]} 33. Rxh7+ {[%emt 0:00:00]} Qxh7 {[%emt 0:00:08]} 34. Qxd8+ {[%emt 0:00:00]} Kg7 {[%emt 0:00:07]} 35. Qe7+ {[%emt 0:00:00]} Kh6 {[%emt 0:00:10]} 36. Qh4+ {[%emt 0:00:00]} Kg7 {[%emt 0:00:15]} 37. Qxh7+ {[%emt 0:00:00]} Kxh7 {[%emt 0:00:06]} 38. Bxb7 {[%emt 0:00:00]} Kg6 {[%emt 0:00:10]} 39. c5 {[%emt 0:00:00]} Kf7 {[%emt 0:00:25]} 40. c6 {[%emt 0:00:00]} Ke7 {[%emt 0:00:04]} 41. c7 {[%emt 0:00:00]} Kd7 {[%emt 0:00:07]} 42. c8=Q+ {[%emt 0:17:00]} Ke7 {[%emt 0:00:00]} 43. Qxf5 {[%emt 0:00:00]} Kd6 {[%emt 0:00:00]} 44. Qd5+ {[%emt 0:00:00]} Kc7 {[%emt 0:00:00]} 45. Qc6+ {[%emt 0:00:00]} Kd8 {[%emt 0:00:00]} 46. Qd6+ {[%emt 0:00:00]} Ke8 {[%emt 0:00:00]} 47. Qc7 {[%emt 0:00:00]} a6 {[%emt 0:00:00]} 48. Bc6+ {[%emt 0:00:00]} Kf8 {[%emt 0:00:00]} 49. Qd7 {[%emt 0:00:00]} a5 {[%emt 0:00:00]} 50. Bd5 {[%emt 0:00:00]} a4 {[%emt 0:00:00]} 51. Qf7# {[%emt 0:00:00]} 1-0